bitfinex/quotes_ETHUSD_20240715
["timestamp","ask_amount","ask_price","bid_price","bid_amount"]
[1721003765429,0.47926894,3275.8,3274.8,2.3088]
[1721003765430,0.47926894,3275.8,3275.3,1.4484131]
[1721003765710,0.47926894,3275.8,3275.4,2.3088]
[1721003766123,0.47926894,3275.8,3275.7,1.4484131]
[1721003766709,4.30859094,3275.8,3275.5,1.4484131]
[1721003766897,0.47926894,3275.8,3275.5,1.4484131]
[1721003767411,2.222152,3275.7,3275.5,1.4484131]
[1721003768978,0.47926894,3275.8,3275.7,1.4484131]
[1721003769688,3.05142,3277.2,3276.1,1.4484131]
[1721003769689,3.37075042,3277.0,3276.1,1.4484131]
[1721003769892,3.70781046,3277.0,3276.1,1.4484131]
[1721003770330,0.47912989,3276.8,3276.1,1.4484131]
[1721003770477,0.65624046,3277.0,3276.3,1.4484131]
[1721003770478,0.21956353,3277.0,3276.3,1.4484131]
[1721003770678,2.954674,3276.9,3276.3,1.4484131]
[1721003770982,0.21956353,3277.0,3276.7,1.4484131]
[1721003770983,0.47912094,3277.0,3276.7,1.4484131]
[1721003771330,3.05093,3277.7,3276.7,1.4484131]
[1721003772579,3.05101,3277.6,3276.7,1.4484131]
[1721003772892,3.05121,3277.4,3276.6,2.2727]
[1721003773091,3.05145,3277.2,3276.6,2.2727]
[1721003773293,9.131647,3277.1,3276.6,2.2727]
[1721003773586,9.131647,3277.1,3275.3,25.2481]
[1721003773587,3.05157,3277.0,3276.1,2.2549]
[1721003773789,3.05178,3276.8,3276.1,2.2549]
[1721003773992,3.8880477,3276.7,3276.1,2.2549]
[1721003774185,3.05157,3277.0,3276.1,2.2549]
[1721003774391,10.793915,3276.9,3276.1,2.2549]
[1721003774689,6.717778,3276.8,3276.4,1.4484131]
[1721003774892,11.185288,3277.0,3276.1,3.7033131]
[1721003775097,1.4236848,3276.9,3276.1,2.2549]
[1721003775298,10.1447358,3276.9,3276.4,1.4484131]
[1721003775620,1.4236848,3276.9,3276.4,1.4484131]
[1721003775783,3.356411,3277.3,3276.4,1.4484131]
[1721003775987,3.05139,3277.2,3276.4,1.4484131]
[1721003776786,3.05176,3276.8,3276.2,1.4484131]
[1721003777120,7.211741,3276.7,3276.2,1.4484131]
[1721003777331,7.441652,3276.6,3276.2,1.4484131]
[1721003777486,1.0493412,3276.6,3276.2,1.4484131]
[1721003777685,2.890121,3277.3,3276.1,2.2549]
[1721003777686,3.05158,3277.0,3276.1,2.2549]
[1721003777932,3.05173,3276.9,3276.1,2.2549]
[1721003778306,3.05176,3276.8,3276.1,2.2549]
[1721003778825,3.05168,3276.9,3276.1,2.2549]
[1721003779019,3.05168,3276.9,3276.3,1.4484131]
[1721003779217,7.153269,3276.8,3276.3,1.4484131]
[1721003779419,4.664339,3276.7,3276.1,2.2549]
[1721003779616,0.610326,3276.8,3276.1,2.2549]
[1721003779817,3.05185,3276.7,3276.1,2.2549]
[1721003780195,6.660346,3276.6,3276.1,2.2549]
[1721003780397,6.297714,3276.6,3276.1,2.2549]
[1721003780722,5.684714,3276.6,3276.2,1.4484131]
[1721003780928,3.05167,3276.9,3276.2,1.4484131]
[1721003781088,4.810744,3276.8,3276.4,1.4484131]
[1721003781289,5.941491,3277.3,3276.6,1.4484131]
[1721003781494,3.356491,3277.3,3276.7,2.4073]
[1721003781692,2.188297,3277.2,3276.7,2.4073]
[1721003782013,3.356491,3277.3,3276.7,2.4073]
[1721003782316,5.871481,3277.2,3276.7,2.4073]
[1721003782520,4.5383812,3277.1,3276.7,2.4073]
[1721003782826,2.918721,3277.0,3276.7,2.4073]
[1721003783325,2.690122,3277.0,3276.7,2.4073]
[1721003783537,2.611352,3277.0,3276.7,2.4073]
[1721003783696,0.305121,3277.3,3276.7,2.4073]
[1721003783897,0.3356321,3277.3,3276.7,2.4073]
[1721003784091,5.642634,3277.2,3276.6,1.4484131]
[1721003784296,11.503032,3277.1,3276.6,1.4484131]
[1721003784594,3.06139,3277.0,3276.6,1.4484131]
[1721003785135,3.06139,3277.0,3276.3,2.2868]
[1721003785136,0.3356321,3277.3,3276.8,1.4484131]
[1721003785430,3.0511,3277.5,3276.8,1.4484131]
[1721003785644,3.61471,3277.5,3276.8,1.4484131]
[1721003786121,3.05122,3277.4,3276.6,1.4484131]
[1721003786316,3.05148,3277.1,3276.6,1.4484131]
[1721003786494,5.163376,3277.0,3276.6,1.4484131]
[1721003786698,4.8640776,3277.0,3276.6,1.4484131]
[1721003786897,3.35239,3276.9,3276.6,1.4484131]
[1721003787637,0.8214856,3277.0,3276.6,1.4484131]
[1721003787797,3.05138,3277.2,3276.6,1.4484131]
[1721003787997,3.691296,3277.1,3276.6,1.4484131]
[1721003788621,6.742786,3277.1,3276.6,1.4484131]
[1721003788809,2.606844,3277.0,3276.6,1.4484131]
[1721003789136,5.658414,3277.0,3276.6,1.4484131]
[1721003789345,7.3937654,3276.9,3276.6,1.4484131]
[1721003789635,3.248382,3276.8,3276.6,1.4484131]
[1721003790162,3.248382,3276.8,3276.3,2.2868]
[1721003790163,6.300142,3276.8,3276.3,2.2868]
[1721003790451,4.526881,3276.7,3276.3,2.2868]
[1721003790652,6.66300418,3276.7,3276.3,2.2868]
[1721003790849,11.11366942,3276.6,3276.3,2.2868]
[1721003791050,3.05176,3276.8,3276.1,1.4484131]
[1721003791427,2.585,3276.9,3276.5,1.4484131]
[1721003791637,3.05149,3277.1,3276.5,1.4484131]
[1721003791821,3.193295,3277.0,3276.5,1.4484131]
[1721003792022,6.244865,3277.0,3276.3,1.4484131]
[1721003792246,3.693295,3276.9,3276.3,1.4484131]
[1721003792562,3.05182,3276.8,3276.3,1.4484131]
[1721003792767,2.486232,3276.7,3276.3,1.4484131]
[1721003792936,2.486232,3276.7,3276.4,1.4484131]
[1721003793115,3.612469,3276.9,3276.6,1.4484131]
[1721003793321,0.3612469,3276.9,3276.6,1.4484131]
[1721003793524,2.519319,3276.8,3276.6,1.4484131]
[1721003793723,0.3612469,3276.9,3276.6,1.4484131]
[1721003794066,3.0514,3277.2,3276.7,2.3127]
[1721003794227,3.086707,3277.1,3276.7,2.3127]
[1721003794722,2.531576,3277.1,3276.7,2.3127]
[1721003794922,2.531576,3277.1,3276.8,1.4484131]
[1721003794923,3.144576,3277.1,3276.8,1.4484131]
[1721003795658,2.585,3277.3,3276.8,1.4484131]
[1721003795856,3.06030371,3278.4,3277.3,1.4484131]
[1721003795857,2.585,3277.7,3277.3,1.4484131]
[1721003796321,3.52977718,3277.9,3277.3,1.4484131]
[1721003796523,3.05083,3277.8,3277.4,2.3127]
[1721003796723,2.020541,3277.7,3277.4,2.3127]
[1721003797043,5.071461,3277.7,3277.4,2.3127]
[1721003797276,5.0928591,3277.6,3277.4,2.3127]
[1721003797564,3.05092,3277.7,3277.4,2.3127]
[1721003798255,2.168718,3277.6,3277.4,2.3127]
[1721003798459,0.47904718,3277.9,3277.6,1.4484131]
[1721003799672,0.47904718,3277.9,3277.8,1.4484131]
[1721003801695,3.077945,3277.9,3277.6,1.4484131]
[1721003801835,3.05093,3277.7,3277.4,2.3127]
[1721003802166,7.60298,3277.6,3277.2,1.4484131]
[1721003802364,3.05093,3277.7,3277.2,1.4484131]
[1721003802567,2.13688,3277.6,3277.2,1.4484131]
[1721003802758,5.18789,3277.6,3277.2,1.4484131]
[1721003802934,4.24088,3277.5,3277.2,1.4484131]
[1721003803140,0.518789,3277.5,3277.2,1.4484131]
[1721003803451,0.47892677,3277.9,3277.4,1.4484131]
[1721003804060,5.19877995,3278.0,3277.4,1.4484131]
[1721003804269,3.05066,3278.0,3277.4,1.4484131]
[1721003804748,2.585,3278.1,3277.4,1.4484131]
[1721003804949,2.585,3278.1,3278.0,1.4484131]
[1721003805160,2.440223,3278.1,3278.0,1.4484131]
[1721003805477,3.0504,3278.3,3277.9,2.468]
[1721003805783,4.5645302,3278.2,3277.9,2.468]
[1721003805996,15.767865,3278.4,3277.9,3.9164131]
[1721003806295,5.58125,3278.3,3277.9,3.9164131]
[1721003806487,2.585,3278.5,3277.9,3.9164131]
[1721003806799,5.63518,3278.5,3277.9,3.9164131]
[1721003806958,3.05027,3278.4,3277.9,3.9164131]
[1721003807280,13.966227,3278.4,3277.9,2.468]
[1721003807450,13.966227,3278.4,3278.0,1.4484131]
[1721003807451,5.36402,3278.3,3278.0,1.4484131]
[1721003807650,5.36402,3278.3,3277.9,2.468]
[1721003807884,8.41439,3278.3,3277.9,2.468]
[1721003808088,3.05056,3278.1,3277.9,2.468]
[1721003808381,3.291816,3278.0,3277.9,2.468]
[1721003808567,2.861335,3278.0,3277.9,2.468]
[1721003809351,2.25246,3278.0,3277.9,2.468]
[1721003810988,4.38790781,3278.0,3277.6,1.4484131]
[1721003811168,2.585,3277.7,3277.5,2.2969]
[1721003811379,8.593301,3277.6,3277.2,1.4484131]
[1721003811548,3.918318,3277.5,3277.2,1.4484131]
[1721003811745,2.409848,3277.5,3277.2,1.4484131]
[1721003811950,3.117531,3277.5,3277.2,1.4484131]
[1721003812149,3.117531,3277.5,3277.0,3.7249131]
[1721003812351,3.05148,3277.1,3276.6,2.2765]
[1721003812595,2.585,3276.7,3276.5,1.4484131]
[1721003812765,3.05178,3276.8,3276.3,1.4484131]
[1721003812993,5.63678,3276.8,3276.3,1.4484131]
[1721003813396,3.05187,3276.7,3276.3,1.4484131]
[1721003813805,2.585,3276.4,3276.1,3.7249131]
[1721003814308,2.585,3276.4,3275.9,3.9469131]
[1721003814309,14.741983,3276.3,3275.9,3.9469131]
[1721003814610,2.585,3276.0,3275.7,1.4484131]
[1721003814805,4.803128,3275.9,3275.5,3.7856131]
[1721003814992,3.05269,3275.8,3275.5,3.7856131]
[1721003815195,3.401295,3275.8,3275.5,3.7856131]
[1721003815376,3.898445,3275.9,3275.5,3.7856131]
[1721003815704,7.451055,3275.9,3275.5,3.7856131]
[1721003815911,4.398295,3275.8,3275.5,3.7856131]
[1721003816120,4.398295,3275.8,3275.7,1.4484131]
[1721003816276,4.973806,3275.9,3275.5,4.16417441]
[1721003816582,2.585,3276.0,3275.5,3.7856131]
[1721003817202,2.585,3276.0,3275.8,1.4484131]
[1721003817571,1.66980781,3276.0,3275.8,1.4484131]
[1721003818171,2.585,3276.4,3276.0,1.4484131]
[1721003818471,11.462759,3276.3,3275.6,1.4484131]
[1721003818672,2.585,3276.0,3275.6,1.4484131]
[1721003820806,7.704705,3275.9,3275.6,1.4484131]
[1721003820987,11.646244,3275.8,3275.6,1.4484131]
[1721003821182,4.659633,3275.7,3275.6,1.4484131]
[1721003822290,4.659633,3275.7,3275.0,3.8508131]
[1721003822291,3.05295,3275.6,3275.0,3.8508131]
[1721003822477,2.585,3275.4,3275.0,3.8508131]
[1721003822670,2.585,3275.4,3275.2,1.4484131]
[1721003822912,3.05284,3275.7,3275.2,1.4484131]
[1721003823089,5.63775,3275.8,3275.2,1.4484131]
[1721003824309,1.66980781,3275.4,3275.2,1.83349441]
[1721003824709,2.195171,3275.3,3275.2,1.83349441]
[1721003824906,2.195171,3275.3,3275.2,1.4484131]
[1721003825228,1.66980781,3275.4,3275.2,1.4484131]
[1721003826097,2.585,3275.7,3275.5,1.4484131]
[1721003826426,3.579995,3275.6,3275.5,1.4484131]
[1721003826602,3.579995,3275.6,3275.2,1.4484131]
[1721003826806,5.63785,3275.7,3275.2,1.83349441]
[1721003827322,3.05289,3275.6,3275.2,0.38508131]
[1721003827646,10.159058,3275.6,3275.2,1.83349441]
[1721003827812,4.637252,3275.5,3275.0,3.8508131]
[1721003828014,2.585,3275.3,3275.0,3.8508131]
[1721003828221,6.637609,3275.2,3275.0,3.8508131]
[1721003828551,6.637609,3275.2,3274.8,1.4484131]
[1721003828759,2.585,3274.9,3274.6,2.2959]
[1721003829039,2.585,3274.9,3274.2,8.7284131]
[1721003829040,6.480314,3274.8,3274.2,8.7284131]
[1721003829201,13.578283,3274.8,3274.2,8.7284131]
[1721003829397,2.585,3274.4,3274.2,8.7284131]
[1721003829708,4.441631,3274.3,3274.1,2.2959]
[1721003829913,4.441631,3274.3,3274.0,1.4484131]
[1721003830112,2.585,3274.4,3274.2,1.4484131]
[1721003830348,3.327723,3274.3,3274.2,1.4484131]
[1721003830798,3.05337,3275.1,3274.5,1.4484131]
[1721003830998,10.996564,3275.0,3274.5,1.4484131]
[1721003831231,10.996564,3275.0,3274.0,1.4484131]
[1721003831437,2.890337,3275.1,3274.0,1.4484131]
[1721003831438,3.05397,3274.5,3274.0,1.4484131]
[1721003831800,6.141472,3274.4,3274.0,1.4484131]
[1721003832002,3.53341436,3274.4,3274.0,1.4484131]
[1721003832228,9.57602,3274.3,3274.0,1.4484131]
[1721003832413,12.63011,3274.3,3273.8,1.4484131]
[1721003832619,3.05409,3274.3,3273.8,1.4484131]
[1721003832821,3.05409,3274.3,3273.8,1.83733441]
[1721003833540,3.05409,3274.3,3273.8,1.4484131]
[1721003836959,3.05418,3274.2,3273.8,1.4484131]
[1721003837531,3.05409,3274.3,3273.8,1.4484131]
[1721003838252,3.05415,3274.3,3273.8,1.4484131]
[1721003838816,0.47942436,3274.4,3274.0,1.4484131]
[1721003840646,0.47942436,3274.4,3274.3,2.4062]
[1721003840972,2.97278336,3274.4,3273.9,1.4484131]
[1721003841173,3.47799,3274.3,3273.9,1.4484131]
[1721003841332,0.47942436,3274.4,3274.1,1.4484131]
[1721003841658,2.373904,3274.3,3274.1,1.4484131]
[1721003841860,2.373904,3274.3,3273.8,2.4062]
[1721003841861,2.373904,3274.3,3273.9,1.4484131]
[1721003842065,3.567749,3274.3,3273.9,1.4484131]
[1721003842224,3.068249,3274.3,3273.9,1.4484131]
[1721003842424,3.287304,3274.3,3273.8,2.4062]
[1721003842623,3.53342436,3274.4,3273.8,2.4062]
[1721003843168,0.47942436,3274.4,3273.8,2.4062]
[1721003843321,0.47942436,3274.4,3274.2,1.4484131]
[1721003843654,2.220523,3274.3,3274.2,1.4484131]
[1721003844262,0.47942436,3274.4,3274.2,1.4484131]
[1721003844870,5.20239217,3275.3,3274.7,1.4484131]
[1721003845164,14.355995,3275.2,3274.7,1.4484131]
[1721003845338,4.658678,3275.1,3274.7,1.4484131]
[1721003845526,7.712018,3275.1,3274.3,1.4484131]
[1721003845727,3.05334,3275.1,3274.5,1.4484131]
[1721003845964,8.492065,3275.0,3274.5,1.4484131]
[1721003846264,0.47937117,3275.2,3274.8,1.4484131]
[1721003846621,2.300499,3275.1,3274.8,1.4484131]
[1721003847324,0.47937117,3275.2,3274.8,1.4484131]
[1721003847545,0.47937117,3275.2,3275.0,1.4484131]
[1721003847960,2.585,3276.1,3275.5,1.4484131]
[1721003848165,0.47930543,3275.8,3275.5,1.4484131]
[1721003848903,0.47930543,3275.8,3275.7,1.4484131]
[1721003849870,0.31912043,3277.1,3275.7,4.4631131]
[1721003850076,0.47914459,3276.4,3275.9,2.4647]
[1721003850446,3.05144,3277.2,3276.0,0.55]
[1721003850628,3.0515,3277.1,3276.5,1.4484131]
[1721003850828,2.585,3276.9,3276.1,1.4484131]
[1721003851051,5.63666,3276.9,3275.9,3.9131131]
[1721003851265,0.61157587,3276.8,3276.3,1.4484131]
[1721003851429,5.33304368,3276.9,3276.3,1.4484131]
[1721003852273,5.33304368,3276.9,3275.9,2.4647]
[1721003852274,15.667719,3276.8,3276.0,1.4484131]
[1721003852436,3.05195,3276.6,3276.0,1.4484131]
[1721003852653,5.33304368,3276.9,3276.0,1.4484131]
[1721003852654,5.31568,3276.5,3276.0,1.4484131]
[1721003852852,3.05191,3276.7,3276.0,1.4484131]
[1721003853167,11.4604813,3276.6,3276.0,1.4484131]
[1721003853370,5.31758,3276.5,3276.0,1.4484131]
[1721003853949,3.45918,3276.5,3276.0,1.4484131]
[1721003854156,2.28138368,3276.9,3276.3,1.4484131]
[1721003854353,2.556287,3276.8,3276.3,1.4484131]
[1721003854846,6.40089,3276.9,3276.3,1.4484131]
[1721003855052,10.99951587,3276.9,3276.3,1.4484131]
[1721003855246,6.663057,3276.8,3276.3,1.4484131]
[1721003856849,3.185563,3276.8,3276.3,1.4484131]
[1721003857052,3.072563,3276.8,3276.3,1.4484131]
[1721003858244,2.15737081,3276.8,3276.3,1.4484131]
[1721003858572,2.270371,3276.8,3276.3,1.4484131]
[1721003858742,2.157371,3276.7,3276.3,1.4484131]
[1721003858973,2.585,3276.9,3276.3,1.4484131]
[1721003859178,2.157371,3276.8,3276.6,1.4484131]
[1721003859493,0.4790987,3277.0,3276.8,3.8280131]
[1721003861277,4.021767,3276.9,3276.6,3.7174131]
[1721003861519,0.4790987,3277.0,3276.6,3.7174131]
[1721003861819,0.4790987,3277.0,3276.9,1.4484131]
[1721003862175,0.4790987,3277.0,3276.7,1.4484131]
[1721003862819,0.4790987,3277.0,3276.9,1.4484131]
[1721003864391,2.585,3277.7,3277.4,1.4484131]
[1721003864598,2.585,3278.1,3277.4,3.7294131]
[1721003864919,5.17379081,3278.0,3277.6,1.4484131]
[1721003865122,6.76560148,3278.0,3277.6,1.4484131]
[1721003865282,2.585,3277.7,3277.3,1.4484131]
[1721003865683,2.429621,3277.6,3277.3,1.4484131]
[1721003866984,2.429621,3277.6,3277.1,1.4484131]
[1721003867294,12.690828,3277.6,3277.1,1.4484131]
[1721003867486,5.557587,3277.5,3277.1,1.4484131]
[1721003867687,2.573017,3277.5,3277.3,1.4484131]
[1721003868019,5.391232,3277.6,3277.3,1.4484131]
[1721003868225,6.583202,3277.6,3277.3,1.4484131]
[1721003868433,6.583202,3277.6,3277.1,1.4484131]
[1721003868725,8.683602,3277.6,3277.1,1.4484131]
[1721003869535,6.384402,3277.6,3277.3,1.4484131]
[1721003869711,6.305632,3277.6,3277.3,1.4484131]
[1721003869918,8.684602,3277.6,3277.3,1.4484131]
[1721003870120,10.1166442,3277.6,3276.8,1.4484131]
[1721003870448,3.05117,3277.5,3276.8,1.4484131]
[1721003870598,5.63631,3277.3,3276.7,1.4484131]
[1721003870804,0.563631,3277.2,3276.7,1.4484131]
[1721003871321,14.233542,3277.1,3276.6,2.4053]
[1721003871524,2.585,3276.9,3276.3,1.4484131]
[1721003871724,17.332826,3276.8,3276.3,1.4484131]
[1721003871886,11.58035,3276.7,3276.3,1.4484131]
[1721003872411,3.05195,3276.6,3276.1,1.4484131]
[1721003872612,6.100977,3276.6,3276.1,1.4484131]
[1721003872826,1.66980781,3276.9,3276.4,1.4484131]
[1721003873047,2.472375,3276.8,3276.4,1.4484131]
[1721003873352,3.0516,3277.0,3276.4,1.4484131]
[1721003873520,3.0516,3277.0,3276.2,1.4484131]
[1721003873521,3.05181,3276.8,3276.2,1.4484131]
[1721003874134,2.585,3276.9,3276.5,1.4484131]
[1721003874341,4.674991,3276.8,3276.5,1.4484131]
[1721003874840,2.585,3276.9,3276.5,1.4484131]
[1721003875033,2.585,3276.9,3276.5,3.7653131]
[1721003875244,5.48844,3276.8,3276.3,1.4484131]
[1721003875542,2.585,3276.9,3276.3,1.4484131]
[1721003875703,2.585,3276.9,3276.6,1.4484131]
[1721003875903,4.120437,3276.8,3276.6,1.4484131]
[1721003876149,6.293821,3277.1,3276.6,1.4484131]
[1721003876312,15.201975,3277.1,3276.2,1.4484131]
[1721003876516,3.05179,3276.8,3276.2,1.4484131]
[1721003877323,5.63679,3276.8,3276.2,1.4484131]
[1721003878507,2.585,3276.8,3276.2,1.4484131]
[1721003878706,3.05185,3276.7,3276.1,2.3169]
[1721003878972,3.05185,3276.7,3276.0,1.4484131]
[1721003879245,3.920702,3276.7,3276.0,1.4484131]
[1721003879958,3.05185,3276.7,3276.0,1.4484131]
[1721003880107,2.585,3276.8,3276.2,1.4484131]
[1721003880821,5.63676,3276.8,3276.0,1.4484131]
[1721003881661,5.63676,3276.8,3276.2,1.4484131]
[1721003881823,2.585,3276.8,3276.2,1.4484131]
[1721003882534,5.63678,3276.8,3276.2,1.4484131]
[1721003882914,2.585,3276.8,3276.2,1.4484131]
[1721003883560,5.63677,3276.8,3276.0,1.4484131]
[1721003883860,2.585,3276.8,3276.2,1.4484131]
[1721003884277,3.05186,3276.7,3276.0,1.4484131]
[1721003884991,3.052,3276.6,3275.8,1.4484131]
[1721003885155,5.63677,3276.8,3275.8,1.4484131]
[1721003885354,3.05222,3276.3,3275.6,8.7284131]
[1721003885561,2.585,3276.0,3275.6,8.7284131]
[1721003886086,9.793091,3275.9,3275.6,8.7284131]
[1721003886236,9.793091,3275.9,3275.4,1.4484131]
[1721003886443,13.419122,3275.9,3275.4,1.4484131]
[1721003886740,8.382492,3275.9,3275.4,1.4484131]
[1721003887747,2.701884,3275.8,3275.4,1.4484131]
[1721003887949,6.74205,3275.9,3275.4,1.4484131]
[1721003888458,4.24205,3275.9,3275.4,1.4484131]
[1721003888656,2.585,3276.4,3275.9,1.4484131]
[1721003888953,3.734838,3276.3,3275.7,1.4484131]
[1721003889179,2.585,3276.4,3275.7,1.4484131]
[1721003889794,2.585,3276.0,3275.4,1.4484131]
[1721003890792,5.63751,3276.0,3275.4,1.4484131]
[1721003891153,5.63751,3276.0,3275.2,1.4484131]
[1721003891365,5.63788,3275.6,3275.0,1.4484131]
[1721003891588,13.984268,3275.5,3275.0,1.4484131]
[1721003891784,19.3047378,3275.5,3274.8,8.7284131]
[1721003891995,14.27293483,3275.4,3274.8,1.4484131]
[1721003892159,8.228198,3275.3,3274.8,1.4484131]
[1721003892495,2.585,3275.2,3274.8,1.4484131]
[1721003892794,3.517502,3275.1,3274.8,1.4484131]
[1721003894293,3.517502,3275.1,3274.6,1.4484131]
[1721003894606,2.585,3275.2,3274.6,1.4484131]
[1721003895383,2.585,3275.2,3274.8,1.4484131]
[1721003895659,3.307502,3275.1,3274.5,2.3063]
[1721003895986,2.585,3274.8,3274.4,1.4484131]
[1721003896294,2.585,3274.8,3274.2,1.4484131]
[1721003896295,15.844252,3274.7,3274.2,1.4484131]
[1721003896458,3.05371,3274.7,3274.2,1.4484131]
[1721003896879,3.0539,3274.5,3273.9,1.4484131]
[1721003897081,6.74019,3274.4,3273.9,1.4484131]
[1721003897276,6.74019,3274.4,3274.1,1.4484131]
[1721003897277,4.273104,3274.4,3274.1,1.4484131]
[1721003897520,2.585,3274.8,3274.3,1.4484131]
[1721003897690,3.05383,3274.6,3273.9,1.4484131]
[1721003898791,12.281348,3274.5,3273.9,1.4484131]
[1721003898999,3.05418,3274.2,3273.6,1.4484131]
[1721003900440,6.202515,3274.8,3273.9,1.4484131]
[1721003900738,3.05371,3274.7,3273.9,1.4484131]
[1721003900935,3.05387,3274.6,3273.9,1.4484131]
[1721003901436,3.05371,3274.7,3274.2,1.4484131]
[1721003901639,6.452864,3274.6,3273.9,1.4484131]
[1721003901941,3.05371,3274.7,3273.9,1.4484131]
[1721003902147,3.617581,3274.7,3273.9,1.4484131]
[1721003902505,3.617581,3274.7,3274.2,1.4484131]
[1721003902700,0.563871,3274.7,3274.2,1.4484131]
[1721003902904,2.477222,3274.6,3274.0,1.4484131]
[1721003903130,3.617591,3274.7,3274.0,1.4484131]
[1721003903519,3.0539,3274.5,3274.0,1.4484131]
[1721003903727,3.0539,3274.5,3273.7,1.4484131]
[1721003903948,3.0541,3274.3,3273.7,1.4484131]
[1721003904728,3.05383,3274.6,3273.7,1.4484131]
[1721003905263,5.63871,3274.8,3274.0,1.4484131]
[1721003905464,11.456104,3274.7,3274.2,1.4484131]
[1721003905768,10.956104,3274.7,3274.2,1.4484131]
[1721003905966,12.9209424,3274.7,3274.2,1.4484131]
[1721003906167,9.192104,3274.6,3274.2,1.4484131]
[1721003906476,9.192104,3274.6,3273.9,1.4484131]
[1721003906649,10.005104,3274.6,3273.9,1.4484131]
[1721003906826,10.005104,3274.6,3274.2,1.4484131]
[1721003907025,9.505104,3274.6,3274.2,1.4484131]
[1721003907262,10.012204,3274.6,3274.2,1.4484131]
[1721003907445,10.012204,3274.6,3273.7,1.4484131]
[1721003907631,1.19770424,3274.5,3273.7,1.4484131]
[1721003907835,2.585,3274.8,3273.9,1.4484131]
[1721003908039,13.811574,3274.7,3273.9,1.4484131]
[1721003908237,8.296212,3274.6,3273.9,1.4484131]
[1721003908456,8.296212,3274.6,3274.2,1.4484131]
[1721003908663,8.848651,3274.6,3274.2,1.4484131]
[1721003908865,2.585,3274.8,3274.3,2.2993]
[1721003908866,4.100758,3274.5,3274.3,2.2993]
[1721003909066,3.648042,3274.7,3274.5,1.4484131]
[1721003909283,3.05331,3275.2,3274.5,1.4484131]
[1721003909583,15.089055,3275.2,3274.5,1.4484131]
[1721003909765,6.993709,3275.1,3274.5,1.4484131]
[1721003910071,10.047059,3275.1,3274.5,1.4484131]
[1721003910393,14.748371,3275.0,3274.3,2.2993]
[1721003910572,3.05368,3274.8,3274.3,2.2993]
[1721003910746,6.168804,3274.7,3274.3,2.2993]
[1721003910948,3.716114,3274.7,3274.3,2.2993]
[1721003911473,2.262959,3274.6,3274.3,2.2993]
[1721003911678,2.960601,3274.7,3274.3,2.2993]
[1721003911880,6.395191,3274.7,3274.0,1.4484131]
[1721003912068,3.05356,3274.9,3274.0,1.4484131]
[1721003912265,3.05356,3274.9,3274.0,1.82318441]
[1721003912443,3.05341,3275.1,3274.4,1.4484131]
[1721003913339,3.05341,3275.1,3274.2,1.4484131]
[1721003913340,17.103162,3275.0,3274.2,1.4484131]
[1721003913565,17.103162,3275.0,3274.0,1.82318441]
[1721003913566,3.05345,3275.0,3274.0,1.82318441]
[1721003913956,5.63862,3274.8,3274.0,1.82318441]
[1721003914180,34.911308,3274.7,3274.0,1.4484131]
[1721003914506,31.857578,3274.6,3274.0,1.4484131]
[1721003915199,3.0539,3274.5,3274.0,1.4484131]
[1721003915387,37.496578,3274.4,3273.7,1.4484131]
[1721003915560,5.639,3274.4,3273.9,1.4484131]
[1721003915761,31.09143,3274.3,3273.9,1.4484131]
[1721003916878,30.566772,3274.3,3273.9,1.4484131]
[1721003917205,3.0539,3274.5,3273.9,1.4484131]
[1721003917408,31.857578,3274.4,3273.9,1.4484131]
[1721003919002,31.857578,3274.5,3273.9,1.4484131]
[1721003919504,34.911488,3274.5,3273.9,1.4484131]
[1721003919707,31.857578,3274.4,3273.9,1.4484131]
[1721003922584,34.911578,3274.4,3273.9,1.4484131]
[1721003922777,31.857578,3274.3,3273.9,1.4484131]
[1721003923706,31.857578,3274.6,3273.9,1.4484131]
[1721003924004,3.05433,3274.1,3273.5,9.5793]
[1721003924180,2.585,3274.4,3273.5,11.0277131]
[1721003924383,3.05423,3274.2,3273.5,11.0277131]
[1721003924720,2.585,3274.4,3273.8,1.4484131]
[1721003924903,31.857578,3274.3,3273.6,1.4484131]
[1721003925107,5.639,3274.4,3273.6,1.4484131]
[1721003925490,5.639,3274.4,3273.5,9.5793]
[1721003925491,5.639,3274.4,3273.8,1.4484131]
[1721003925682,31.857578,3274.3,3273.8,1.4484131]
[1721003926511,31.857578,3274.3,3273.6,1.4484131]
[1721003926693,5.639,3274.4,3273.6,1.4484131]
[1721003927016,5.639,3274.4,3273.5,9.5793]
[1721003927017,0.5639,3274.3,3273.5,9.5793]
[1721003927191,2.585,3274.4,3273.5,9.5793]
[1721003927517,3.05433,3274.1,3273.5,9.5793]
[1721003928885,2.585,3274.4,3273.5,11.0277131]
[1721003929200,3.05409,3274.3,3273.5,11.0277131]
[1721003929657,3.05409,3274.3,3273.5,9.5793]
[1721003929936,3.05409,3274.3,3273.5,2.2993]
[1721003929937,3.05428,3274.1,3273.5,2.2993]
[1721003930707,3.05437,3274.0,3273.5,2.2993]
[1721003931589,34.912098,3273.9,3273.2,1.4484131]
[1721003931811,3.05452,3273.9,3273.2,1.4484131]
[1721003932036,3.05452,3273.9,3273.1,2.4089]
[1721003932037,3.05465,3273.7,3273.1,2.4089]
[1721003933019,2.585,3274.0,3273.1,2.4089]
[1721003933227,5.63937,3274.0,3273.4,1.4484131]
[1721003933436,31.857578,3273.9,3273.4,1.4484131]
[1721003937191,2.585,3274.0,3273.4,1.4484131]
[1721003937821,31.857578,3273.9,3273.4,1.4484131]
[1721003939251,3.05399,3274.5,3273.8,2.3295]
[1721003939397,31.857578,3274.4,3273.8,2.3295]
[1721003939599,31.857578,3274.4,3273.9,1.4484131]
[1721003939906,31.857578,3274.5,3273.9,1.4484131]
[1721003940341,31.857578,3274.5,3273.8,2.3295]
[1721003940634,34.9211627,3274.5,3273.8,2.3295]
[1721003940871,31.857578,3274.4,3273.8,2.3295]
[1721003941435,3.05427,3274.1,3273.4,2.3295]
[1721003941622,31.857578,3274.0,3273.4,2.3295]
[1721003942434,31.857578,3274.1,3273.4,3.43529131]
[1721003942609,2.585,3274.2,3273.7,1.4484131]
[1721003942935,2.585,3274.2,3273.4,4.88370441]